[Event "*** SCC Grand Prix: Titled Tuesday Blitz"]
[Site "Chess.com"]
[Date "2020.09.29"]
[Round "10"]
[White "mr_gustavo"]
[Black "CheckThis4"]
[Result "1-0"]
[WhiteElo "2407"]
[BlackElo "2605"]
[TimeControl "180+1"]
[EndTime "11:56:36 PDT"]
[Termination "mr_gustavo won on time"]

1. e4 {[%clk 0:03:00.9]} 1... Nc6 {[%clk 0:02:59.6]} 2. Nf3 {[%clk 0:02:59]}
2... e5 {[%clk 0:02:59]} 3. Bb5 {[%clk 0:02:58.7]} 3... a6 {[%clk 0:02:57.8]} 4.
Ba4 {[%clk 0:02:58.3]} 4... Nf6 {[%clk 0:02:57.1]} 5. O-O {[%clk 0:02:57.8]}
5... b5 {[%clk 0:02:53.6]} 6. Bb3 {[%clk 0:02:57.1]} 6... Be7 {[%clk 0:02:54]}
7. d4 {[%clk 0:02:56.5]} 7... exd4 {[%clk 0:02:51.8]} 8. e5 {[%clk 0:02:56]}
8... Ng4 {[%clk 0:02:51.6]} 9. Re1 {[%clk 0:02:52.9]} 9... Bb7 {[%clk
0:02:41.8]} 10. h3 {[%clk 0:02:51.9]} 10... Nh6 {[%clk 0:02:42]} 11. Bxh6 {[%clk
0:02:48.4]} 11... gxh6 {[%clk 0:02:42.9]} 12. c3 {[%clk 0:02:26.9]} 12... d3
{[%clk 0:02:34.6]} 13. Qxd3 {[%clk 0:02:25]} 13... Bc5 {[%clk 0:02:34.6]} 14.
Nbd2 {[%clk 0:02:20.1]} 14... Qe7 {[%clk 0:02:34.3]} 15. Ne4 {[%clk 0:02:17.6]}
15... O-O-O {[%clk 0:02:34]} 16. Nxc5 {[%clk 0:02:17.8]} 16... Qxc5 {[%clk
0:02:33.5]} 17. Bxf7 {[%clk 0:02:14.8]} 17... Rhf8 {[%clk 0:02:29.4]} 18. e6
{[%clk 0:02:14.6]} 18... dxe6 {[%clk 0:02:28.2]} 19. Bxe6+ {[%clk 0:02:15.5]}
19... Kb8 {[%clk 0:02:28.4]} 20. Qxh7 {[%clk 0:02:13.9]} 20... Rxf3 {[%clk
0:02:23.3]} 21. gxf3 {[%clk 0:02:11.2]} 21... Ne5 {[%clk 0:02:22.8]} 22. Bg4
{[%clk 0:02:05.4]} 22... Rd2 {[%clk 0:02:20.7]} 23. Re3 {[%clk 0:01:57.7]} 23...
Nc4 {[%clk 0:02:06.6]} 24. Qh8+ {[%clk 0:01:43.7]} 24... Ka7 {[%clk 0:02:05.3]}
25. Qxh6 {[%clk 0:01:44.2]} 25... Rxb2 {[%clk 0:01:57.4]} 26. Rd1 {[%clk
0:01:22.9]} 26... Rxa2 {[%clk 0:01:53.6]} 27. Rd7 {[%clk 0:01:20.8]} 27... Rc2
{[%clk 0:01:27.5]} 28. h4 {[%clk 0:01:05.1]} 28... Nxe3 {[%clk 0:01:15.6]} 29.
Qxe3 {[%clk 0:01:06]} 29... Qxe3 {[%clk 0:01:15.8]} 30. fxe3 {[%clk 0:01:06.9]}
30... Rxc3 {[%clk 0:01:16.2]} 31. h5 {[%clk 0:01:05.3]} 31... Rxe3 {[%clk
0:00:52.7]} 32. h6 {[%clk 0:01:05.1]} 32... Re1+ {[%clk 0:00:24.5]} 33. Kf2
{[%clk 0:01:02.6]} 33... Rh1 {[%clk 0:00:24]} 34. h7 {[%clk 0:01:01.4]} 34...
Kb6 {[%clk 0:00:18.4]} 35. Bf5 {[%clk 0:00:57.9]} 35... b4 {[%clk 0:00:16.7]}
36. Rd8 {[%clk 0:00:54.9]} 36... Rh2+ {[%clk 0:00:12.2]} 37. Kg3 {[%clk
0:00:54.5]} 37... Rxh7 {[%clk 0:00:09.7]} 38. Bxh7 {[%clk 0:00:53.9]} 38... a5
{[%clk 0:00:10.6]} 39. f4 {[%clk 0:00:50]} 39... a4 {[%clk 0:00:10.7]} 40. Rd1
{[%clk 0:00:49.3]} 40... b3 {[%clk 0:00:09.6]} 41. Bg8 {[%clk 0:00:40.6]} 41...
Kb5 {[%clk 0:00:05.2]} 42. f5 {[%clk 0:00:40.8]} 42... Be4 {[%clk 0:00:03.7]}
43. f6 {[%clk 0:00:39.5]} 43... Bg6 {[%clk 0:00:04.2]} 44. Kg4 {[%clk
0:00:27.8]} 44... b2 {[%clk 0:00:04.6]} 45. Kg5 {[%clk 0:00:24.8]} 45... Be8
{[%clk 0:00:04.6]} 46. Ba2 {[%clk 0:00:15.3]} 46... a3 {[%clk 0:00:05]} 47. Re1
{[%clk 0:00:14.1]} 47... Bf7 {[%clk 0:00:01.9]} 48. Bxf7 {[%clk 0:00:12.9]}
48... c5 {[%clk 0:00:02.8]} 49. Ba2 {[%clk 0:00:12.9]} 49... c4 {[%clk
0:00:02.7]} 50. f7 {[%clk 0:00:13.4]} 50... c3 {[%clk 0:00:03.6]} 51. f8=Q
{[%clk 0:00:13.7]} 51... c2 {[%clk 0:00:04.5]} 52. Qxa3 {[%clk 0:00:11.9]} 52...
c1=Q+ {[%clk 0:00:04.4]} 53. Rxc1 {[%clk 0:00:12]} 53... b1=Q {[%clk 0:00:02.3]}
54. Rxb1+ {[%clk 0:00:11.7]} 1-0

[Event "*** SCC Grand Prix: Titled Tuesday Blitz"]
[Site "Chess.com"]
[Date "2020.09.29"]
[Round "10"]
[White "venus02"]
[Black "chessfrendz"]
[Result "0-1"]
[WhiteElo "2480"]
[BlackElo "2381"]
[TimeControl "180+1"]
[EndTime "11:56:39 PDT"]
[Termination "chessfrendz won on time"]

1. e4 {[%clk 0:03:00.4]} 1... c5 {[%clk 0:02:56.1]} 2. Nf3 {[%clk 0:03:00.1]}
2... d6 {[%clk 0:02:55.9]} 3. Bb5+ {[%clk 0:02:58.9]} 3... Bd7 {[%clk
0:02:55.1]} 4. Bxd7+ {[%clk 0:02:58.7]} 4... Qxd7 {[%clk 0:02:56]} 5. c4 {[%clk
0:02:58.4]} 5... Nc6 {[%clk 0:02:55.1]} 6. d4 {[%clk 0:02:57.5]} 6... cxd4
{[%clk 0:02:53.1]} 7. Nxd4 {[%clk 0:02:57.6]} 7... Rc8 {[%clk 0:02:51.1]} 8. b3
{[%clk 0:02:55]} 8... Nf6 {[%clk 0:02:48.5]} 9. Nc3 {[%clk 0:02:54.4]} 9... Qg4
{[%clk 0:02:43.7]} 10. Qxg4 {[%clk 0:02:48.7]} 10... Nxg4 {[%clk 0:02:42.8]} 11.
Nde2 {[%clk 0:02:44.8]} 11... e6 {[%clk 0:02:40.8]} 12. f3 {[%clk 0:02:43.5]}
12... Nge5 {[%clk 0:02:37.1]} 13. Be3 {[%clk 0:02:43.4]} 13... Nd3+ {[%clk
0:02:34.7]} 14. Kd2 {[%clk 0:02:39.6]} 14... Nc5 {[%clk 0:02:30.8]} 15. Rhd1
{[%clk 0:02:35.9]} 15... a6 {[%clk 0:02:26.5]} 16. Ke1 {[%clk 0:02:34.5]} 16...
Nb4 {[%clk 0:02:20.6]} 17. Rab1 {[%clk 0:02:04.2]} 17... Nc2+ {[%clk 0:02:15.4]}
18. Kf2 {[%clk 0:02:03.5]} 18... Nxe3 {[%clk 0:02:16.3]} 19. Kxe3 {[%clk
0:02:03.7]} 19... Be7 {[%clk 0:02:16.6]} 20. Kf2 {[%clk 0:01:57.7]} 20... g5
{[%clk 0:02:15.1]} 21. Nc1 {[%clk 0:01:54.3]} 21... Rg8 {[%clk 0:02:10.4]} 22.
Nd3 {[%clk 0:01:53.8]} 22... Nxd3+ {[%clk 0:02:03.6]} 23. Rxd3 {[%clk
0:01:53.1]} 23... h5 {[%clk 0:02:03.5]} 24. Rbd1 {[%clk 0:01:43.5]} 24... Bf6
{[%clk 0:01:59.5]} 25. Ne2 {[%clk 0:01:37.7]} 25... Be5 {[%clk 0:01:59]} 26. a4
{[%clk 0:01:33.5]} 26... h4 {[%clk 0:01:53.9]} 27. g3 {[%clk 0:01:32.9]} 27...
hxg3+ {[%clk 0:01:53.4]} 28. hxg3 {[%clk 0:01:33.3]} 28... Rh8 {[%clk
0:01:49.5]} 29. f4 {[%clk 0:01:06.3]} 29... gxf4 {[%clk 0:01:45.7]} 30. gxf4
{[%clk 0:01:05.8]} 30... Rh2+ {[%clk 0:01:45.3]} 31. Kf3 {[%clk 0:01:05.7]}
31... Rh3+ {[%clk 0:01:44.4]} 32. Ng3 {[%clk 0:01:05.2]} 32... Bf6 {[%clk
0:01:39.7]} 33. Rh1 {[%clk 0:01:03.7]} 33... Rxh1 {[%clk 0:01:37.2]} 34. Nxh1
{[%clk 0:01:03.8]} 34... Ke7 {[%clk 0:01:35.8]} 35. Ng3 {[%clk 0:01:03.6]} 35...
Bb2 {[%clk 0:01:33]} 36. Ne2 {[%clk 0:00:57.2]} 36... Ba3 {[%clk 0:01:31.7]} 37.
e5 {[%clk 0:00:54.7]} 37... dxe5 {[%clk 0:01:27.4]} 38. fxe5 {[%clk 0:00:54.8]}
38... Bb2 {[%clk 0:01:25.8]} 39. Ke4 {[%clk 0:00:54]} 39... Rh8 {[%clk
0:01:22.5]} 40. Rd6 {[%clk 0:00:38]} 40... Rh4+ {[%clk 0:01:14.8]} 41. Kd3
{[%clk 0:00:33]} 41... Rh3+ {[%clk 0:01:09.3]} 42. Kc2 {[%clk 0:00:32.5]} 42...
Bxe5 {[%clk 0:01:04.7]} 43. Rb6 {[%clk 0:00:32.9]} 43... f5 {[%clk 0:01:01.4]}
44. Rxb7+ {[%clk 0:00:32.4]} 44... Kf6 {[%clk 0:01:01.9]} 45. b4 {[%clk
0:00:24.3]} 45... Rh2 {[%clk 0:01:00.9]} 46. Kd3 {[%clk 0:00:23.5]} 46... Rh3+
{[%clk 0:01:00.5]} 47. Kd2 {[%clk 0:00:23.4]} 47... f4 {[%clk 0:00:58.3]} 48.
Ke1 {[%clk 0:00:15.7]} 48... f3 {[%clk 0:00:57.6]} 49. Ng1 {[%clk 0:00:15.9]}
49... Rh1 {[%clk 0:00:52]} 50. Kf2 {[%clk 0:00:11.8]} 50... Bd4+ {[%clk
0:00:52]} 51. Kxf3 {[%clk 0:00:12]} 51... Rxg1 {[%clk 0:00:52.9]} 52. b5 {[%clk
0:00:10.5]} 52... Ra1 {[%clk 0:00:51.4]} 53. Rd7 {[%clk 0:00:06.8]} 53... Ke5
{[%clk 0:00:49.9]} 54. bxa6 {[%clk 0:00:02.5]} 54... Rxa4 {[%clk 0:00:48.9]} 55.
Rc7 {[%clk 0:00:02.6]} 55... Rxa6 {[%clk 0:00:48.2]} 56. Ke2 {[%clk 0:00:03]}
56... Ra3 {[%clk 0:00:46.7]} 57. Kd2 {[%clk 0:00:03.2]} 57... Rc3 {[%clk
0:00:46.3]} 58. Rc6 {[%clk 0:00:02]} 58... Ra3 {[%clk 0:00:41]} 59. Rc8 {[%clk
0:00:01.9]} 59... Ke4 {[%clk 0:00:38.1]} 60. c5 {[%clk 0:00:02.1]} 60... Rc3
{[%clk 0:00:36.4]} 61. c6 {[%clk 0:00:01.9]} 61... e5 {[%clk 0:00:35.5]} 0-1

[Event "*** SCC Grand Prix: Titled Tuesday Blitz"]
[Site "Chess.com"]
[Date "2020.09.29"]
[Round "10"]
[White "Manukyan_Artak"]
[Black "MarceloPlaya"]
[Result "1/2-1/2"]
[WhiteElo "2364"]
[BlackElo "2284"]
[TimeControl "180+1"]
[EndTime "11:56:39 PDT"]
[Termination "Game drawn - timeout vs insufficient material"]

1. e4 {[%clk 0:03:00.9]} 1... e6 {[%clk 0:02:59.3]} 2. d4 {[%clk 0:03:00.3]}
2... d5 {[%clk 0:02:59.4]} 3. e5 {[%clk 0:03:00.5]} 3... c5 {[%clk 0:02:58.5]}
4. c3 {[%clk 0:03:00.2]} 4... Nc6 {[%clk 0:02:58.6]} 5. Nf3 {[%clk 0:02:59.5]}
5... Qb6 {[%clk 0:02:57.7]} 6. a3 {[%clk 0:02:58.7]} 6... c4 {[%clk 0:02:56.1]}
7. Nbd2 {[%clk 0:02:57.9]} 7... f6 {[%clk 0:02:56]} 8. exf6 {[%clk 0:02:56.8]}
8... Nxf6 {[%clk 0:02:55.3]} 9. Be2 {[%clk 0:02:48.1]} 9... Bd6 {[%clk
0:02:54.4]} 10. O-O {[%clk 0:02:47.4]} 10... O-O {[%clk 0:02:54.2]} 11. Re1
{[%clk 0:02:45.3]} 11... Bd7 {[%clk 0:02:50.9]} 12. b3 {[%clk 0:02:39.5]} 12...
cxb3 {[%clk 0:02:49.5]} 13. Qxb3 {[%clk 0:02:39.5]} 13... Qc7 {[%clk 0:02:49]}
14. Nf1 {[%clk 0:02:33.5]} 14... Ne4 {[%clk 0:02:47.3]} 15. c4 {[%clk
0:02:28.3]} 15... Na5 {[%clk 0:02:35.5]} 16. Qe3 {[%clk 0:02:23.2]} 16... Nxc4
{[%clk 0:02:26.6]} 17. Bxc4 {[%clk 0:02:20.5]} 17... Qxc4 {[%clk 0:02:26]} 18.
N1d2 {[%clk 0:02:02.3]} 18... Qc3 {[%clk 0:02:15.3]} 19. Nxe4 {[%clk 0:01:56.2]}
19... Qxe3 {[%clk 0:02:08.6]} 20. Rxe3 {[%clk 0:01:54.5]} 20... dxe4 {[%clk
0:02:08.5]} 21. Rxe4 {[%clk 0:01:54.7]} 21... Rac8 {[%clk 0:01:52.2]} 22. Bd2
{[%clk 0:01:40.2]} 22... Rc4 {[%clk 0:01:26.2]} 23. Re3 {[%clk 0:00:52.4]} 23...
Rfc8 {[%clk 0:00:56.1]} 24. Ne5 {[%clk 0:00:47.9]} 24... Rxd4 {[%clk 0:00:47.8]}
25. Bb4 {[%clk 0:00:34.1]} 25... Bxb4 {[%clk 0:00:34.6]} 26. axb4 {[%clk
0:00:33.6]} 26... Bb5 {[%clk 0:00:33.4]} 27. h4 {[%clk 0:00:23.6]} 27... a6
{[%clk 0:00:30.1]} 28. Nf3 {[%clk 0:00:21.8]} 28... Rxb4 {[%clk 0:00:28.2]} 29.
Rxe6 {[%clk 0:00:21.5]} 29... Bc6 {[%clk 0:00:21.5]} 30. Ng5 {[%clk 0:00:19.1]}
30... Rxh4 {[%clk 0:00:17.8]} 31. Re7 {[%clk 0:00:18]} 31... h6 {[%clk 0:00:17]}
32. Ne6 {[%clk 0:00:17.4]} 32... Rg4 {[%clk 0:00:16.6]} 33. f3 {[%clk
0:00:13.5]} 33... Rg6 {[%clk 0:00:15.9]} 34. Re1 {[%clk 0:00:10.5]} 34... Re8
{[%clk 0:00:15.2]} 35. Rxe8+ {[%clk 0:00:08.3]} 35... Bxe8 {[%clk 0:00:14.4]}
36. Nf4 {[%clk 0:00:08.8]} 36... b5 {[%clk 0:00:08.3]} 37. Rxe8+ {[%clk
0:00:07.4]} 37... Kf7 {[%clk 0:00:08]} 38. Nxg6 {[%clk 0:00:08.3]} 38... Kxe8
{[%clk 0:00:08]} 39. Ne5 {[%clk 0:00:08.1]} 39... Ke7 {[%clk 0:00:07]} 40. Kf2
{[%clk 0:00:08.3]} 40... Kd6 {[%clk 0:00:06.8]} 41. Nd3 {[%clk 0:00:07.8]} 41...
Kd5 {[%clk 0:00:07]} 42. Ke3 {[%clk 0:00:08.7]} 42... a5 {[%clk 0:00:07.1]} 43.
Kd2 {[%clk 0:00:08.3]} 43... Kc4 {[%clk 0:00:06.5]} 44. Kc2 {[%clk 0:00:08.5]}
44... b4 {[%clk 0:00:06]} 45. Ne5+ {[%clk 0:00:08.2]} 45... Kd4 {[%clk
0:00:04.9]} 46. Nc6+ {[%clk 0:00:08.3]} 46... Ke3 {[%clk 0:00:05]} 47. Nxa5
{[%clk 0:00:08.3]} 47... Kf2 {[%clk 0:00:05.1]} 48. f4 {[%clk 0:00:08.1]} 48...
Kxg2 {[%clk 0:00:04.6]} 49. Nc6 {[%clk 0:00:08.7]} 49... Kf3 {[%clk 0:00:04.4]}
50. Nxb4 {[%clk 0:00:08.7]} 50... Kxf4 {[%clk 0:00:04.2]} 51. Kd3 {[%clk
0:00:09.6]} 51... Kf3 {[%clk 0:00:04]} 52. Nc2 {[%clk 0:00:08.7]} 52... h5
{[%clk 0:00:03.2]} 53. Nd4+ {[%clk 0:00:09.6]} 53... Kf2 {[%clk 0:00:02]} 54.
Nf5 {[%clk 0:00:08.5]} 1/2-1/2

[Event "*** SCC Grand Prix: Titled Tuesday Blitz"]
[Site "Chess.com"]
[Date "2020.09.29"]
[Round "10"]
[White "Oligan22"]
[Black "sokidze"]
[Result "0-1"]
[WhiteElo "2419"]
[BlackElo "2608"]
[TimeControl "180+1"]
[EndTime "11:56:41 PDT"]
[Termination "sokidze won by checkmate"]

1. e4 {[%clk 0:03:00.9]} 1... c6 {[%clk 0:03:00.2]} 2. d4 {[%clk 0:03:00.3]}
2... d5 {[%clk 0:03:00.7]} 3. e5 {[%clk 0:03:00.9]} 3... Bf5 {[%clk 0:03:00.6]}
4. h4 {[%clk 0:03:01.2]} 4... h5 {[%clk 0:03:00.8]} 5. Bg5 {[%clk 0:02:54.5]}
5... Qb6 {[%clk 0:02:58.9]} 6. Bd3 {[%clk 0:02:54.6]} 6... Bxd3 {[%clk
0:02:49.1]} 7. Qxd3 {[%clk 0:02:55.5]} 7... e6 {[%clk 0:02:49.7]} 8. Nd2 {[%clk
0:02:47.8]} 8... Nd7 {[%clk 0:02:45]} 9. Ngf3 {[%clk 0:02:34.1]} 9... Nh6 {[%clk
0:02:39.4]} 10. O-O {[%clk 0:02:19.8]} 10... Nf5 {[%clk 0:02:35.8]} 11. c4
{[%clk 0:02:19.2]} 11... Be7 {[%clk 0:02:27.2]} 12. Bxe7 {[%clk 0:02:09.4]}
12... Kxe7 {[%clk 0:02:21]} 13. Qa3+ {[%clk 0:02:03.1]} 13... Ke8 {[%clk
0:01:58.2]} 14. cxd5 {[%clk 0:02:03.4]} 14... exd5 {[%clk 0:01:52.2]} 15. Nb3
{[%clk 0:01:44.2]} 15... Nf8 {[%clk 0:01:17.7]} 16. Rfd1 {[%clk 0:01:14.9]}
16... Ne6 {[%clk 0:01:13.2]} 17. Rac1 {[%clk 0:01:15]} 17... Rd8 {[%clk
0:01:09.1]} 18. g3 {[%clk 0:01:13.4]} 18... a6 {[%clk 0:00:50.9]} 19. Kg2 {[%clk
0:01:12.1]} 19... Qc7 {[%clk 0:00:49.6]} 20. Nc5 {[%clk 0:01:09]} 20... Qe7
{[%clk 0:00:46.7]} 21. Qd3 {[%clk 0:00:56.2]} 21... Nxc5 {[%clk 0:00:39.5]} 22.
Rxc5 {[%clk 0:00:46.6]} 22... g6 {[%clk 0:00:39.1]} 23. Ng5 {[%clk 0:00:42]}
23... Ng7 {[%clk 0:00:39.2]} 24. Rcc1 {[%clk 0:00:28.2]} 24... Ne6 {[%clk
0:00:38.9]} 25. Nf3 {[%clk 0:00:27.5]} 25... Kf8 {[%clk 0:00:37.7]} 26. Qe3
{[%clk 0:00:26.8]} 26... Kg7 {[%clk 0:00:37.4]} 27. Nd2 {[%clk 0:00:26.9]} 27...
Rc8 {[%clk 0:00:35.4]} 28. a3 {[%clk 0:00:21.9]} 28... a5 {[%clk 0:00:33.7]} 29.
Qc3 {[%clk 0:00:20.1]} 29... b6 {[%clk 0:00:31.2]} 30. f4 {[%clk 0:00:20.4]}
30... c5 {[%clk 0:00:27.1]} 31. dxc5 {[%clk 0:00:21.3]} 31... bxc5 {[%clk
0:00:23.6]} 32. Qxa5 {[%clk 0:00:20.7]} 32... Qb7 {[%clk 0:00:23.7]} 33. Kh2
{[%clk 0:00:15]} 33... Qxb2 {[%clk 0:00:19.8]} 34. Qc3 {[%clk 0:00:15]} 34...
Qb7 {[%clk 0:00:17.4]} 35. Nf3 {[%clk 0:00:14.8]} 35... d4 {[%clk 0:00:17.4]}
36. Qd3 {[%clk 0:00:14.7]} 36... c4 {[%clk 0:00:17.4]} 37. Qe2 {[%clk
0:00:14.3]} 37... d3 {[%clk 0:00:17.4]} 38. Qe3 {[%clk 0:00:14.2]} 38... Rhd8
{[%clk 0:00:17.3]} 39. Ng5 {[%clk 0:00:14.2]} 39... Nxg5 {[%clk 0:00:16.5]} 40.
fxg5 {[%clk 0:00:14.9]} 40... Qb2+ {[%clk 0:00:13.4]} 41. Kh3 {[%clk 0:00:13.5]}
41... d2 {[%clk 0:00:12.6]} 42. Rc3 {[%clk 0:00:10.7]} 42... Qb7 {[%clk
0:00:08]} 43. Qf4 {[%clk 0:00:10.4]} 43... Qd7+ {[%clk 0:00:07]} 44. Kh2 {[%clk
0:00:08.2]} 44... Qd4 {[%clk 0:00:07.1]} 45. Qf6+ {[%clk 0:00:07.1]} 45... Kg8
{[%clk 0:00:07.1]} 46. Rf3 {[%clk 0:00:07.3]} 46... Rc7 {[%clk 0:00:04]} 47. Kg2
{[%clk 0:00:07.5]} 47... Re8 {[%clk 0:00:04]} 48. e6 {[%clk 0:00:06.6]} 48...
Qxf6 {[%clk 0:00:03.6]} 49. Rxf6 {[%clk 0:00:05.9]} 49... c3 {[%clk 0:00:04]}
50. exf7+ {[%clk 0:00:05.5]} 50... Rxf7 {[%clk 0:00:04.9]} 51. Rxg6+ {[%clk
0:00:05.4]} 51... Kf8 {[%clk 0:00:05.1]} 52. Rc6 {[%clk 0:00:06.2]} 52... Re2+
{[%clk 0:00:03.8]} 53. Kh3 {[%clk 0:00:02.4]} 53... Rff2 {[%clk 0:00:04.3]} 54.
g4 {[%clk 0:00:02.6]} 54... Rf3# {[%clk 0:00:04.3]} 0-1

[Event "*** SCC Grand Prix: Titled Tuesday Blitz"]
[Site "Chess.com"]
[Date "2020.09.29"]
[Round "10"]
[White "sorrm8thatscheckm8"]
[Black "GMJustin"]
[Result "1-0"]
[WhiteElo "2459"]
[BlackElo "2261"]
[TimeControl "180+1"]
[EndTime "11:56:45 PDT"]
[Termination "sorrm8thatscheckm8 won on time"]

1. d4 {[%clk 0:03:00.3]} 1... Nf6 {[%clk 0:02:36.7]} 2. c4 {[%clk 0:02:58.8]}
2... e6 {[%clk 0:02:35.6]} 3. Nf3 {[%clk 0:02:58.5]} 3... d5 {[%clk 0:02:31.5]}
4. Nc3 {[%clk 0:02:57.9]} 4... c5 {[%clk 0:02:27.2]} 5. cxd5 {[%clk 0:02:57.2]}
5... Nxd5 {[%clk 0:02:26.9]} 6. Nxd5 {[%clk 0:02:54.2]} 6... Qxd5 {[%clk
0:02:21.2]} 7. g3 {[%clk 0:02:54.3]} 7... Nc6 {[%clk 0:02:11.9]} 8. Bg2 {[%clk
0:02:50.9]} 8... cxd4 {[%clk 0:02:01.4]} 9. O-O {[%clk 0:02:50.8]} 9... Bc5
{[%clk 0:02:01.2]} 10. b4 {[%clk 0:02:49.1]} 10... Nxb4 {[%clk 0:01:51.9]} 11.
Ng5 {[%clk 0:02:20.3]} 11... Qd7 {[%clk 0:01:36.3]} 12. a3 {[%clk 0:02:12.8]}
12... Nc6 {[%clk 0:01:26.3]} 13. Qd3 {[%clk 0:02:12.1]} 13... h6 {[%clk
0:01:21.2]} 14. Ne4 {[%clk 0:02:11.9]} 14... Be7 {[%clk 0:01:21]} 15. Bb2 {[%clk
0:02:07.4]} 15... O-O {[%clk 0:01:18.5]} 16. Rfd1 {[%clk 0:02:06.8]} 16... e5
{[%clk 0:01:14.1]} 17. Rac1 {[%clk 0:02:05.4]} 17... Qf5 {[%clk 0:01:02.6]} 18.
Rc2 {[%clk 0:01:46.7]} 18... Be6 {[%clk 0:00:58.1]} 19. Rdc1 {[%clk 0:01:46.3]}
19... Rac8 {[%clk 0:00:55.3]} 20. h3 {[%clk 0:01:43.7]} 20... Qg6 {[%clk
0:00:53.7]} 21. Qb5 {[%clk 0:01:37.3]} 21... Bf5 {[%clk 0:00:43.6]} 22. Qd3
{[%clk 0:01:29.3]} 22... h5 {[%clk 0:00:36.8]} 23. h4 {[%clk 0:00:58.2]} 23...
Rfd8 {[%clk 0:00:33.3]} 24. e3 {[%clk 0:00:51.3]} 24... dxe3 {[%clk 0:00:27.5]}
25. Qxe3 {[%clk 0:00:50.1]} 25... Nd4 {[%clk 0:00:25]} 26. Rc7 {[%clk
0:00:44.9]} 26... Rxc7 {[%clk 0:00:20.8]} 27. Rxc7 {[%clk 0:00:42.4]} 27... Rd7
{[%clk 0:00:20.2]} 28. Rxd7 {[%clk 0:00:39.2]} 28... Bxd7 {[%clk 0:00:19]} 29.
Bxd4 {[%clk 0:00:39.7]} 29... exd4 {[%clk 0:00:19.1]} 30. Qxd4 {[%clk
0:00:37.5]} 30... Bc6 {[%clk 0:00:18.9]} 31. a4 {[%clk 0:00:29]} 31... a6 {[%clk
0:00:18.9]} 32. Qe5 {[%clk 0:00:24.5]} 32... Qe6 {[%clk 0:00:18]} 33. Qd4 {[%clk
0:00:19.9]} 33... Qd7 {[%clk 0:00:13]} 34. Qe5 {[%clk 0:00:18.5]} 34... Bxa4
{[%clk 0:00:08.1]} 35. Qxh5 {[%clk 0:00:18.8]} 35... Bc6 {[%clk 0:00:07.9]} 36.
Ng5 {[%clk 0:00:17.5]} 36... Bxg5 {[%clk 0:00:07.6]} 37. Bxc6 {[%clk 0:00:17.7]}
37... Qxc6 {[%clk 0:00:06]} 38. Qxg5 {[%clk 0:00:17.7]} 38... b6 {[%clk
0:00:05.6]} 39. Qd8+ {[%clk 0:00:16]} 39... Kh7 {[%clk 0:00:05.9]} 40. Qd3+
{[%clk 0:00:16.1]} 40... g6 {[%clk 0:00:05.5]} 41. Qxa6 {[%clk 0:00:15.6]} 41...
Qc5 {[%clk 0:00:05.3]} 42. Qa7 {[%clk 0:00:14.3]} 42... Kg7 {[%clk 0:00:05.3]}
43. Qa1+ {[%clk 0:00:12.7]} 43... f6 {[%clk 0:00:04]} 44. Qa7+ {[%clk
0:00:12.1]} 44... Kg8 {[%clk 0:00:04.3]} 45. Qb8+ {[%clk 0:00:11.9]} 45... Kf7
{[%clk 0:00:04.3]} 46. Qb7+ {[%clk 0:00:12.4]} 46... Kg8 {[%clk 0:00:04]} 47.
Qb8+ {[%clk 0:00:12.7]} 47... Kf7 {[%clk 0:00:01.3]} 48. Qb7+ {[%clk 0:00:13.2]}
48... Kf8 {[%clk 0:00:01.2]} 49. Qa8+ {[%clk 0:00:13.5]} 49... Kf7 {[%clk
0:00:00.8]} 50. Qa2+ {[%clk 0:00:13.4]} 1-0